bitfinex/quotes_BTCUSD_20250422
["timestamp","ask_amount","ask_price","bid_price","bid_amount"]
[1745286486243,0.24688764,88277.0,88276.0,0.01007453]
[1745286489590,0.24688764,88277.0,88276.0,0.01007529]
[1745286495801,0.36064358,88277.0,88276.0,0.01007529]
[1745286495947,0.40614358,88277.0,88276.0,0.01007529]
[1745286496154,0.40514358,88277.0,88276.0,0.01007529]
[1745286496351,0.45704358,88277.0,88276.0,0.01007529]
[1745286496551,0.45704358,88277.0,88241.0,0.0487]
[1745286496552,0.22662889,88250.0,88241.0,0.0487]
[1745286496755,0.22662889,88250.0,88249.0,0.00013745]
[1745286497858,0.22862889,88250.0,88249.0,0.00013745]
[1745286498581,0.002,88250.0,88249.0,0.35150497]
[1745286498996,0.002,88250.0,88249.0,0.51496091]
[1745286499196,0.002,88250.0,88249.0,0.51596091]
[1745286500815,0.01133003,88261.0,88259.0,0.34]
[1745286501036,0.01132964,88264.0,88261.0,0.34]
[1745286502107,0.01133016,88260.0,88259.0,0.34]
[1745286502784,0.01033016,88260.0,88259.0,0.34]
[1745286502956,0.2399251,88264.0,88259.0,0.34]
[1745286503159,0.01332964,88264.0,88261.0,0.34]
[1745286503361,0.01132951,88265.0,88262.0,0.0113299]
[1745286503591,0.23792258,88264.0,88261.0,0.35133003]
[1745286503825,0.22659808,88262.0,88261.0,0.34]
[1745286504191,0.22659808,88262.0,88250.0,0.01133144]
[1745286504192,0.01133118,88252.0,88249.0,0.01250497]
[1745286504403,0.22562889,88250.0,88249.0,0.01250497]
[1745286504768,0.22462889,88250.0,88249.0,0.01250497]
[1745286505176,0.22462889,88250.0,88249.0,0.00213745]
[1745286505177,0.22362889,88250.0,88249.0,0.00213745]
[1745286505404,0.33738483,88250.0,88249.0,0.00213745]
[1745286505604,0.38258483,88250.0,88249.0,0.00213745]
[1745286506004,0.26882889,88250.0,88249.0,0.00213745]
[1745286506202,0.23995493,88252.0,88249.0,0.00213745]
[1745286506426,0.22662889,88250.0,88249.0,0.00213745]
[1745286507038,0.22662889,88250.0,88249.0,0.00113745]
[1745286507426,0.23262889,88250.0,88249.0,0.00213745]
[1745286507959,0.23262889,88250.0,88249.0,0.00113745]
[1745286508109,0.23462889,88250.0,88249.0,0.00213745]
[1745286508733,0.22662889,88250.0,88249.0,0.00113745]
[1745286508945,0.23362889,88250.0,88249.0,0.01092437]
[1745286509782,0.23342881,88250.0,88249.0,0.01092437]
[1745286510216,0.22642881,88250.0,88249.0,0.00992437]
[1745286510443,0.004,88250.0,88249.0,0.00992437]
[1745286510613,0.007,88250.0,88249.0,0.35092437]
[1745286510957,0.007,88250.0,88249.0,0.47197479]
[1745286511199,0.007,88250.0,88249.0,0.47097479]
[1745286511401,0.009,88250.0,88249.0,0.47197479]
[1745286511915,0.01132887,88270.0,88267.0,0.34]
[1745286512161,0.22658268,88268.0,88267.0,0.34]
[1745286512555,0.23790892,88270.0,88267.0,0.34]
[1745286512921,0.01132926,88267.0,88264.0,0.01132964]
[1745286513126,0.01132951,88265.0,88261.0,0.35133003]
[1745286513535,0.01132951,88265.0,88262.0,0.0201065]
[1745286513964,0.01132951,88265.0,88263.0,0.0087766]
[1745286514169,0.01532926,88267.0,88263.0,0.0087766]
[1745286514347,0.001,88265.0,88263.0,0.0087766]
[1745286514693,0.004,88265.0,88264.0,0.0087766]
[1745286514851,0.01132926,88267.0,88264.0,0.0087766]
[1745286515050,0.001,88265.0,88264.0,0.0087766]
[1745286516060,0.001,88265.0,88263.0,0.23792494]
[1745286516264,0.01532926,88267.0,88264.0,0.01132964]
[1745286516527,0.01132926,88267.0,88264.0,0.01132964]
[1745286516858,0.006,88265.0,88264.0,0.01132964]
[1745286517256,0.004,88265.0,88264.0,0.01132964]
[1745286517436,0.004,88265.0,88264.0,0.47612364]
[1745286517437,0.007,88265.0,88264.0,0.47612364]
[1745286517672,0.003,88265.0,88264.0,0.47385784]
[1745286518170,0.01132759,88280.0,88277.0,0.01132797]
[1745286518771,0.01132759,88280.0,88278.0,0.00877226]
[1745286519146,0.01132733,88282.0,88278.0,0.01132785]
[1745286520014,0.01132733,88282.0,88278.0,0.2378826]
[1745286520363,0.22653306,88288.0,88282.0,0.23787162]
[1745286520586,0.01132656,88288.0,88284.0,0.01132708]
[1745286520784,0.01132656,88288.0,88283.0,0.0113272]
[1745286521090,0.01132592,88293.0,88283.0,0.0113272]
[1745286521091,0.01132528,88298.0,88291.0,0.01132618]
[1745286521262,0.01132554,88296.0,88290.0,0.01132631]
[1745286521468,0.05366027,88297.0,88295.0,0.22651339]
[1745286521689,0.05366027,88297.0,88293.0,0.01132592]
[1745286521899,0.01132554,88296.0,88292.0,0.23784713]
[1745286522070,0.01132579,88294.0,88290.0,0.22652413]
[1745286522265,0.01132579,88294.0,88290.0,0.23785044]
[1745286522671,0.01132579,88294.0,88290.0,0.22652413]
[1745286523037,0.00636027,88297.0,88294.0,0.22651431]
[1745286523215,0.002,88296.0,88294.0,0.22651431]
[1745286523569,0.01136027,88297.0,88296.0,0.56651082]
[1745286523776,0.01136027,88297.0,88296.0,0.68026676]
[1745286523999,0.00045687,88297.0,88296.0,0.68026676]
[1745286524198,0.00545687,88297.0,88296.0,0.68126676]
[1745286524399,0.00545687,88297.0,88296.0,0.72666676]
[1745286524696,0.00845687,88297.0,88296.0,0.72666676]
[1745286525121,0.01345687,88297.0,88296.0,0.72766676]
[1745286525691,0.0008468,88309.0,88308.0,0.56648004]
[1745286525900,0.00098381,88309.0,88308.0,0.56648004]
[1745286526426,0.00098381,88309.0,88308.0,0.68023598]
[1745286527319,0.00098381,88309.0,88308.0,0.45375594]
[1745286527532,0.00498381,88309.0,88308.0,0.68023598]
[1745286527860,0.00398381,88309.0,88308.0,0.68023598]
[1745286528081,0.00398381,88309.0,88308.0,0.69477683]
[1745286528345,0.00498381,88309.0,88308.0,0.69477683]
[1745286528746,0.00498381,88309.0,88308.0,0.46672299]
[1745286529169,0.0008468,88312.0,88310.0,0.22647491]
[1745286529319,0.0008468,88312.0,88310.0,0.38563085]
[1745286529705,0.0008468,88312.0,88310.0,0.15915594]
[1745286529916,0.01132477,88302.0,88299.0,0.22079092]
[1745286530131,0.2378229,88301.0,88299.0,0.00013701]
[1745286530335,0.2348229,88301.0,88299.0,0.00013701]
[1745286531198,0.23781756,88303.0,88299.0,0.00313701]
[1745286531423,0.01132477,88302.0,88299.0,0.00313701]
[1745286531597,0.01132477,88302.0,88299.0,0.00013701]
[1745286531792,0.001,88301.0,88299.0,0.00013701]
[1745286533078,0.003,88301.0,88299.0,0.00013701]
[1745286533287,0.001,88301.0,88299.0,0.00013701]
[1745286533572,0.002,88301.0,88299.0,0.00013701]
[1745286533808,0.001,88301.0,88299.0,0.00013701]
[1745286534022,0.22749864,88301.0,88299.0,0.00013701]
[1745286534789,0.22849864,88301.0,88299.0,0.00013701]
[1745286538380,0.01132502,88300.0,88295.0,0.22651312]
[1745286538601,0.01132502,88300.0,88296.0,0.34]
[1745286538828,0.00313722,88301.0,88299.0,0.22650067]
[1745286539475,0.00213722,88301.0,88300.0,0.45375594]
[1745286539619,0.00213722,88301.0,88300.0,0.88499679]
[1745286539620,0.00113722,88301.0,88300.0,0.88499679]
[1745286539821,0.0008468,88311.0,88310.0,0.56647491]
[1745286540030,0.0008468,88311.0,88310.0,0.68023085]
[1745286541622,0.0008468,88311.0,88310.0,0.68123085]
[1745286541781,0.0008468,88311.0,88310.0,0.68990557]
[1745286542339,0.0008468,88311.0,88310.0,0.70444642]
[1745286542669,0.0008468,88311.0,88310.0,0.70344642]
[1745286543373,0.0008468,88311.0,88310.0,0.70444642]
[1745286543919,0.0008468,88311.0,88310.0,0.70344642]
[1745286544228,0.0008468,88311.0,88310.0,0.70444642]
[1745286545807,0.0008468,88311.0,88310.0,0.68990557]
[1745286545986,0.22731915,88311.0,88310.0,0.001]
[1745286546187,0.28073605,88311.0,88310.0,0.001]
[1745286546398,0.39449199,88311.0,88310.0,0.001]
[1745286546601,0.226498,88301.0,88283.0,0.01108486]
[1745286546803,0.38545394,88301.0,88283.0,0.01108486]
[1745286546992,0.38545394,88301.0,88270.0,0.23211979]
[1745286546993,0.43415394,88301.0,88270.0,0.23211979]
[1745286547190,0.01132849,88273.0,88265.0,0.0004226]
[1745286547509,0.61515594,88301.0,88265.0,0.01523998]
[1745286547510,0.4075,88291.0,88265.0,0.01523998]
[1745286547709,0.23787742,88281.0,88280.0,0.22079092]
[1745286547932,0.23787742,88281.0,88276.0,0.34]
[1745286547933,0.01132772,88279.0,88276.0,0.34]
[1745286548134,0.01132708,88284.0,88280.0,0.01132759]
[1745286548294,0.23787157,88283.0,88276.0,0.34]
[1745286548499,0.01132759,88280.0,88277.0,0.01132797]
[1745286549450,0.01132695,88285.0,88278.0,0.01132785]
[1745286549657,0.01132708,88284.0,88279.0,0.23788216]
[1745286549878,0.001,88280.0,88279.0,0.23788216]
[1745286550270,0.01132733,88282.0,88279.0,0.23788216]
[1745286550879,0.01132733,88282.0,88279.0,0.19111987]
[1745286551481,0.001,88285.0,88282.0,0.35132733]
[1745286551886,0.01132669,88287.0,88284.0,0.35132708]
[1745286553177,0.001,88285.0,88284.0,0.35132708]
[1745286553732,0.001,88287.0,88286.0,0.34]
[1745286553928,0.003,88287.0,88286.0,0.34]
[1745286554707,0.003,88287.0,88286.0,0.45375594]
[1745286555224,0.001,88287.0,88286.0,0.45375594]
[1745286555837,0.001,88287.0,88282.0,0.01132733]
[1745286555838,0.23789093,88276.0,88271.0,0.01132874]
[1745286556048,0.01132772,88279.0,88274.0,0.35132836]
[1745286556245,0.01132772,88279.0,88274.0,0.34]
[1745286556503,0.01132785,88278.0,88274.0,0.56656727]
[1745286556700,0.23784483,88293.0,88286.0,0.34]
[1745286557012,0.22653373,88288.0,88286.0,0.34]
[1745286557798,0.01132746,88281.0,88278.0,0.34]
[1745286557973,0.22655348,88280.0,88278.0,0.34]
[1745286558340,0.01132708,88284.0,88278.0,0.34]
[1745286558565,0.01132746,88281.0,88277.0,0.01132797]
[1745286558898,0.003,88287.0,88286.0,0.34]
[1745286559127,0.01132643,88289.0,88286.0,0.34]
[1745286559240,0.01132502,88300.0,88294.0,0.01132579]
[1745286559445,0.01132515,88299.0,88294.0,0.01132579]
[1745286559946,0.01132502,88300.0,88295.0,0.01132566]
[1745286560069,0.01132515,88299.0,88296.0,0.34]
[1745286560279,0.23782846,88299.0,88296.0,0.34]
[1745286560487,0.01332515,88299.0,88296.0,0.34]
[1745286560911,0.01332515,88299.0,88296.0,0.35132554]
[1745286561348,0.002,88299.0,88298.0,0.34]
[1745286561676,0.004,88299.0,88298.0,0.34]
[1745286561958,0.002,88299.0,88298.0,0.34]
[1745286562436,0.00099999,88301.0,88300.0,0.34]
[1745286564714,0.00399999,88301.0,88300.0,0.34]
[1745286564923,0.00599999,88301.0,88300.0,0.34]
[1745286566354,0.00599999,88301.0,88300.0,0.45375594]
[1745286567753,0.00299999,88301.0,88300.0,0.45375594]
[1745286567930,0.00399999,88301.0,88300.0,0.45375594]
[1745286568351,0.00099999,88301.0,88300.0,0.45375594]
[1745286568558,0.00199999,88301.0,88300.0,0.45375594]
[1745286568721,0.00199999,88301.0,88300.0,0.46929679]
[1745286568934,0.00099999,88301.0,88300.0,0.88599679]
[1745286571000,0.0008468,88311.0,88308.0,0.011324]
[1745286571207,0.0008468,88311.0,88310.0,0.34]
[1745286571365,0.0008468,88311.0,88310.0,0.45375594]
[1745286571767,0.00057037,88311.0,88310.0,0.45375594]
[1745286572180,0.00257037,88311.0,88310.0,0.45375594]
[1745286573010,0.00357037,88311.0,88310.0,0.45375594]
[1745286573422,0.00357037,88311.0,88310.0,0.46829679]
[1745286573824,0.00257037,88311.0,88310.0,0.46829679]
[1745286574024,0.00457037,88311.0,88310.0,0.46829679]
[1745286574631,0.00057037,88311.0,88310.0,0.46829679]
[1745286575010,0.00057037,88311.0,88310.0,0.46929679]
[1745286575411,0.00057037,88311.0,88310.0,0.47029679]
[1745286576181,0.00057037,88311.0,88310.0,0.88699679]
[1745286576925,0.00057037,88311.0,88310.0,0.88599679]
[1745286577120,0.00057037,88311.0,88310.0,0.88699679]
[1745286577924,0.00057037,88311.0,88310.0,0.88799679]
[1745286578470,0.00057037,88311.0,88310.0,0.87345594]
[1745286582148,0.00057037,88311.0,88310.0,0.87145594]
[1745286582570,0.00057037,88311.0,88310.0,0.87245594]
[1745286582800,0.00057037,88311.0,88310.0,0.87145594]
[1745286583314,0.00057037,88311.0,88310.0,0.87245594]
[1745286587143,0.00157036,88311.0,88310.0,0.87245594]
[1745286588879,0.00157036,88311.0,88310.0,0.87145594]
[1745286589238,0.00157036,88311.0,88310.0,0.53245594]
[1745286589792,0.00157036,88311.0,88310.0,0.53145594]
[1745286589994,0.00257036,88311.0,88310.0,0.53145594]
[1745286590218,0.00257036,88311.0,88310.0,0.53045594]
[1745286593941,0.00257036,88311.0,88310.0,0.11375594]
[1745286596519,0.0008456,88318.0,88310.0,0.11375594]
[1745286596520,0.0008456,88318.0,88317.0,0.22645696]
[1745286596690,0.0008456,88318.0,88317.0,0.34247721]
[1745286596899,0.0008456,88318.0,88317.0,0.3402129]
[1745286597684,0.0008456,88318.0,88317.0,0.6802129]
[1745286597885,0.0008456,88318.0,88317.0,0.68872676]
[1745286598757,0.0018456,88318.0,88317.0,0.68872676]
[1745286601856,0.0008456,88318.0,88317.0,0.68872676]
[1745286603009,0.0008456,88318.0,88317.0,0.6802129]
[1745286603192,0.045,88313.0,88311.0,0.4167]
[1745286603394,0.27146922,88313.0,88311.0,0.4167]
[1745286603598,0.01132464,88303.0,88298.0,0.01132528]
[1745286603796,0.01132464,88303.0,88298.0,0.35132528]
[1745286603970,0.01132477,88302.0,88299.0,0.01132515]
[1745286604296,0.011324,88308.0,88303.0,0.01132464]
[1745286604469,0.01132413,88307.0,88303.0,0.01132464]
[1745286604686,0.01132425,88306.0,88303.0,0.35132464]
[1745286604879,0.23781317,88305.0,88300.0,0.23782558]
[1745286605053,0.01132477,88302.0,88298.0,0.001]
[1745286605657,0.2378229,88301.0,88298.0,0.001]
[1745286605863,0.22650313,88299.0,88298.0,0.001]
[1745286606061,0.22651339,88295.0,88294.0,0.34]
[1745286606260,0.27151339,88295.0,88294.0,0.34]
[1745286606444,0.22652108,88292.0,88291.0,0.34]
[1745286606643,0.22452108,88292.0,88291.0,0.34]
[1745286606872,0.22352108,88292.0,88291.0,0.34]
[1745286607103,0.22334196,88292.0,88291.0,0.34]
[1745286607283,0.22134196,88292.0,88291.0,0.34]
[1745286607805,0.22134196,88292.0,88290.0,0.00013722]
[1745286608815,0.21934196,88292.0,88290.0,0.00013722]
[1745286609269,0.22649758,88302.0,88296.0,0.01132554]
[1745286609473,0.01132554,88296.0,88293.0,0.34]
[1745286609617,0.01132554,88296.0,88293.0,0.45375594]
[1745286609618,0.22651595,88294.0,88293.0,0.45375594]
[1745286609839,0.22651595,88294.0,88293.0,0.34]
[1745286610477,0.22652225,88292.0,88290.0,0.00013722]
[1745286612722,0.23052225,88292.0,88290.0,0.00113722]
[1745286613158,0.23252225,88292.0,88290.0,0.00113722]
[1745286613352,0.22952225,88292.0,88290.0,0.00013722]
[1745286613550,0.22652225,88292.0,88290.0,0.00113722]
[1745286613849,0.23152225,88292.0,88290.0,0.00113722]
[1745286615297,0.005,88292.0,88290.0,0.00113722]
[1745286617500,0.22652365,88291.0,88290.0,0.00113722]
[1745286617708,0.005,88292.0,88290.0,0.00113722]
[1745286618501,0.005,88292.0,88290.0,0.34113722]
[1745286618715,0.002,88292.0,88290.0,0.34013722]
[1745286619048,0.002,88291.0,88290.0,0.34013722]
[1745286619453,0.002,88292.0,88290.0,0.34013722]
[1745286619698,0.004,88292.0,88291.0,0.56652365]
[1745286620084,0.002,88292.0,88291.0,0.56652365]
[1745286621084,0.01132579,88294.0,88291.0,0.57784983]
[1745286621466,0.002,88292.0,88291.0,0.57784983]
[1745286623002,0.004,88292.0,88291.0,0.57784983]
[1745286623204,0.004,88292.0,88291.0,0.35132618]
[1745286629827,0.002,88292.0,88291.0,0.35132618]
[1745286630057,0.003,88292.0,88291.0,0.46508212]
[1745286630200,0.045,88306.0,88305.0,0.56648774]
[1745286630406,0.045,88306.0,88305.0,0.57481423]
[1745286630616,0.4075,88317.0,88316.0,0.22645953]
[1745286630835,0.0479456,88318.0,88316.0,0.23478602]
[1745286631288,0.0987456,88318.0,88317.0,0.00832649]
[1745286632320,0.1057456,88318.0,88317.0,0.00832649]
[1745286632467,0.10582852,88318.0,88317.0,0.00832649]
[1745286632672,0.10182852,88318.0,88317.0,0.00832649]
[1745286633118,0.05572852,88318.0,88317.0,0.34932649]
[1745286633317,0.00592852,88318.0,88317.0,0.46308243]
[1745286633514,0.00892852,88318.0,88317.0,0.46308243]
[1745286634198,0.00492852,88318.0,88317.0,0.46208243]
[1745286634615,0.00592852,88318.0,88317.0,0.46308243]
[1745286635067,0.00892852,88318.0,88317.0,0.46308243]
[1745286635309,0.00892852,88318.0,88317.0,0.47174744]
[1745286635783,0.00192852,88318.0,88317.0,0.47074744]
[1745286635999,0.00692852,88318.0,88317.0,0.47074744]
[1745286636476,0.00492852,88318.0,88317.0,0.47074744]
[1745286637390,0.00192852,88318.0,88317.0,0.47074744]
[1745286637595,0.00292852,88318.0,88317.0,0.47074744]
[1745286638722,0.00292852,88318.0,88317.0,0.46242095]
[1745286642350,0.00192852,88318.0,88317.0,0.46242095]
[1745286645519,0.00192852,88318.0,88317.0,0.4769618]
[1745286645719,0.0004226,88328.0,88327.0,0.56643132]
[1745286645899,0.0008456,88345.0,88344.0,0.56638775]
[1745286646107,0.0008456,88345.0,88344.0,0.57986961]
[1745286646470,0.00093888,88345.0,88344.0,0.57986961]
[1745286647952,0.00393888,88345.0,88344.0,0.57986961]
[1745286648518,0.00593888,88345.0,88344.0,0.57986961]
[1745286649441,0.00593888,88345.0,88344.0,0.69362555]
[1745286649826,0.00593888,88345.0,88344.0,0.70226249]
[1745286650882,0.00093888,88345.0,88344.0,0.57986961]
[1745286651288,0.00293888,88345.0,88344.0,0.57986961]
[1745286652231,0.00293888,88345.0,88344.0,0.69362555]
[1745286653056,0.0008452,88347.0,88344.0,0.69362555]
[1745286653057,0.0008452,88347.0,88346.0,0.56638263]
[1745286653232,0.0008452,88347.0,88346.0,0.68013857]
[1745286654370,0.0018452,88347.0,88346.0,0.68013857]
[1745286654503,0.0018452,88347.0,88346.0,0.68843058]
[1745286654706,0.0028452,88347.0,88346.0,0.74947143]
[1745286656487,0.0004233,88352.0,88350.0,0.58091323]
[1745286656681,0.0004233,88352.0,88350.0,0.69466917]
[1745286657110,0.0004233,88352.0,88350.0,0.70296118]
[1745286657910,0.0004233,88352.0,88350.0,0.69466917]
[1745286658070,0.00069846,88358.0,88357.0,0.56635444]
[1745286658303,0.00069846,88358.0,88357.0,0.68011038]
[1745286659328,0.0008464,88364.0,88357.0,0.68011038]
[1745286659329,0.0008464,88364.0,88361.0,0.5663442]
[1745286659481,0.0008464,88364.0,88361.0,0.68010014]
[1745286660927,0.0018464,88362.0,88361.0,0.68010014]
[1745286662771,0.0018464,88362.0,88361.0,0.69464099]
[1745286663178,0.0018464,88362.0,88361.0,0.74114099]
[1745286663549,0.0008464,88362.0,88361.0,0.74114099]
[1745286663802,0.0465,88386.0,88384.0,0.34]
[1745286664030,0.0469578,88386.0,88384.0,0.34]
[1745286664223,0.00438183,88385.0,88384.0,0.34]
[1745286665352,0.00438183,88385.0,88383.0,0.01131439]
[1745286665531,0.00838183,88385.0,88384.0,0.34]
[1745286666851,0.01038183,88385.0,88384.0,0.34]
[1745286667266,0.01138183,88385.0,88384.0,0.01377438]
[1745286667424,0.00738183,88385.0,88381.0,0.22629124]
[1745286667632,0.00738183,88385.0,88381.0,0.24012813]
[1745286667834,0.00738183,88385.0,88383.0,0.22628764]
[1745286668023,0.01138183,88385.0,88383.0,0.22628764]
[1745286668281,0.01138183,88385.0,88381.0,0.24012813]
[1745286668607,0.22629042,88382.0,88381.0,0.01383689]
[1745286668816,0.0497,88366.0,88363.0,0.65435367]
[1745286669067,0.0497,88366.0,88364.0,0.22633441]
[1745286669479,0.0497,88366.0,88365.0,0.34]
[1745286669885,0.01131477,88380.0,88375.0,0.23762178]
[1745286670042,0.00438183,88379.0,88378.0,0.23761569]
[1745286670243,0.001,88382.0,88381.0,0.56629298]
[1745286670856,0.005,88382.0,88381.0,0.57458773]
[1745286671353,0.001,88382.0,88381.0,0.57458773]
[1745286671625,0.003,88382.0,88381.0,0.57458773]
[1745286671813,0.003,88382.0,88381.0,0.68834367]
[1745286673055,0.003,88382.0,88381.0,0.68004892]
[1745286676795,0.003,88382.0,88381.0,0.85752977]
[1745286677516,0.001,88382.0,88381.0,0.85752977]
[1745286677709,0.0004,88399.0,88398.0,0.56624946]
[1745286677911,0.00053723,88399.0,88398.0,0.34]
[1745286678417,0.00498558,88399.0,88398.0,0.34]
[1745286678582,0.00053723,88399.0,88398.0,0.34]
[1745286678751,0.00053723,88399.0,88398.0,0.45375594]
[1745286679394,0.00053723,88399.0,88398.0,0.46212271]
[1745286679958,0.00253723,88399.0,88398.0,0.46212271]
[1745286680421,0.00053723,88399.0,88398.0,0.46212271]
[1745286680627,0.00153723,88399.0,88398.0,0.46212271]
[1745286682254,0.00153723,88399.0,88398.0,0.47666356]
[1745286682531,0.00096038,88416.0,88413.0,0.34]
[1745286682861,0.00444835,88415.0,88413.0,0.34]
[1745286683327,0.00444835,88415.0,88414.0,0.34]
[1745286683930,0.00544835,88415.0,88414.0,0.34]
[1745286684405,0.00544835,88415.0,88414.0,0.35380849]
[1745286684406,0.00444835,88415.0,88414.0,0.35380849]
[1745286684614,0.00844835,88415.0,88414.0,0.35380849]
[1745286688756,0.22623922,88402.0,88398.0,0.00836677]
[1745286688961,0.01131208,88401.0,88398.0,0.00836677]
[1745286689108,0.0489,88399.0,88398.0,0.34]
[1745286689914,0.0535665,88399.0,88398.0,0.35373519]
[1745286690445,0.0535665,88399.0,88398.0,0.3621969]
[1745286690708,0.0545665,88399.0,88398.0,0.3621969]
[1745286693393,0.0545665,88399.0,88398.0,0.0231969]
[1745286694422,0.0545665,88399.0,88398.0,0.3631969]
[1745286694974,0.0499,88399.0,88398.0,0.3631969]
[1745286695189,0.0545665,88399.0,88398.0,0.3631969]
[1745286696561,0.0545665,88399.0,88398.0,0.0231969]
[1745286696778,0.0545665,88399.0,88396.0,0.21016438]
[1745286696981,0.0545665,88399.0,88387.0,0.01131388]
[1745286696982,0.22626,88394.0,88387.0,0.01131388]
[1745286697185,0.01131285,88395.0,88390.0,0.01145072]
[1745286697389,0.22626482,88392.0,88390.0,0.00013723]
[1745286697610,0.0046665,88391.0,88390.0,0.00013723]
[1745286698171,0.22626702,88392.0,88390.0,0.00013723]
[1745286698352,0.0046665,88391.0,88390.0,0.00013723]
[1745286699002,0.01131311,88393.0,88390.0,0.00013723]
[1745286699196,0.00755996,88391.0,88390.0,0.00013723]
[1745286699469,0.003,88391.0,88390.0,0.00013723]
[1745286699686,0.00455996,88391.0,88390.0,0.00013723]
[1745286700106,0.00555996,88391.0,88390.0,0.00013723]
[1745286700307,0.00655996,88391.0,88390.0,0.00013723]
[1745286700551,0.00555996,88391.0,88390.0,0.00013723]
[1745286701313,0.00455996,88391.0,88390.0,0.34013723]
[1745286701459,0.01131311,88393.0,88390.0,0.34013723]
[1745286701645,0.001,88391.0,88390.0,0.34013723]
[1745286702192,0.00555996,88391.0,88390.0,0.34013723]
[1745286702398,0.01131311,88393.0,88390.0,0.34013723]
[1745286702553,0.00455996,88391.0,88390.0,0.34013723]
[1745286702759,0.001,88393.0,88391.0,0.22626738]
[1745286703166,0.001,88393.0,88392.0,0.45375594]
[1745286703716,0.01131157,88405.0,88402.0,0.01131196]
[1745286703921,0.0113117,88404.0,88401.0,0.01131208]
[1745286704103,0.23754849,88403.0,88402.0,0.00831728]
[1745286704302,0.0113117,88404.0,88402.0,0.00831728]
[1745286704507,0.0113117,88404.0,88402.0,0.01868928]
[1745286704754,0.0113117,88404.0,88403.0,0.00831728]
[1745286705108,0.0123117,88404.0,88403.0,0.01868928]
[1745286705904,0.0143117,88404.0,88403.0,0.01868928]
[1745286706105,0.003,88404.0,88403.0,0.01868928]
[1745286706305,0.01131157,88405.0,88403.0,0.01868928]
[1745286706529,0.001,88404.0,88403.0,0.01868928]
[1745286706760,0.003,88404.0,88403.0,0.01868928]
[1745286707083,0.002,88404.0,88403.0,0.01868928]
[1745286707316,0.003,88404.0,88403.0,0.01868928]
[1745286708197,0.001,88404.0,88403.0,0.01868928]
[1745286709674,0.001,88404.0,88403.0,0.00831728]
[1745286709675,0.003,88404.0,88403.0,0.00831728]
[1745286711484,0.01131183,88403.0,88399.0,0.23755849]
[1745286711696,0.01131311,88393.0,88388.0,0.01131375]
[1745286712043,0.00455996,88392.0,88389.0,0.01131362]
[1745286712216,0.00455996,88392.0,88389.0,0.2375858]
[1745286712430,0.0113126,88397.0,88392.0,0.01131324]
[1745286712713,0.01131298,88394.0,88391.0,0.01131336]
[1745286712916,0.01131311,88393.0,88390.0,0.00013723]
[1745286713319,0.22626482,88392.0,88390.0,0.00013723]
[1745286714423,0.22726482,88392.0,88390.0,0.00013723]
[1745286714619,0.001,88392.0,88390.0,0.00013723]
[1745286715324,0.01131298,88394.0,88390.0,0.00013723]
[1745286715863,0.001,88392.0,88390.0,0.00013723]
[1745286716193,0.01131298,88394.0,88390.0,0.01145072]
[1745286716530,0.01231298,88394.0,88390.0,0.01145072]
[1745286717363,0.23757537,88393.0,88390.0,0.00013723]
[1745286717545,0.22626733,88392.0,88390.0,0.00013723]
[1745286718433,0.0921,88391.0,88390.0,0.00013723]
[1745286720386,0.0465,88391.0,88390.0,0.00013723]
[1745286720586,0.0475,88391.0,88390.0,0.00013723]
[1745286721207,0.0485,88391.0,88390.0,0.00013723]
[1745286722318,0.0475,88391.0,88390.0,0.00013723]
[1745286722477,0.0485,88391.0,88390.0,0.00013723]
[1745286722886,0.0505,88391.0,88390.0,0.00013723]
[1745286723094,0.0485,88391.0,88390.0,0.00013723]
[1745286724294,0.0525,88391.0,88390.0,0.00820183]
[1745286725917,0.0525,88391.0,88390.0,0.01857271]
[1745286726426,0.05696677,88391.0,88390.0,0.01857271]
[1745286726621,0.05496677,88391.0,88390.0,0.01857271]
[1745286726831,0.05596677,88391.0,88390.0,0.01857271]
[1745286727356,0.05196677,88391.0,88390.0,0.01857271]
[1745286727680,0.05496677,88391.0,88390.0,0.01857271]
[1745286729682,0.00846677,88391.0,88390.0,0.58484265]
[1745286729879,0.004,88391.0,88390.0,0.58484265]
[1745286731250,0.001,88391.0,88390.0,0.58484265]
[1745286731598,0.002,88391.0,88390.0,0.58484265]
[1745286732264,0.0113126,88397.0,88394.0,0.35131298]
[1745286732718,0.0113126,88397.0,88395.0,0.0080646]
[1745286732920,0.0113126,88397.0,88396.0,0.0080646]
[1745286733604,0.23756014,88399.0,88396.0,0.0080646]
[1745286733977,0.23756014,88399.0,88397.0,0.0080646]
[1745286734135,0.23756014,88399.0,88397.0,0.01843548]
[1745286734471,0.23756014,88399.0,88398.0,0.0080646]
[1745286735236,0.23756014,88399.0,88398.0,0.01843548]
[1745286735656,0.23956014,88399.0,88398.0,0.01843548]
[1745286737415,0.28906014,88399.0,88398.0,0.01843548]
[1745286738189,0.28706014,88399.0,88398.0,0.01843548]
[1745286738630,0.29106014,88399.0,88398.0,0.0080646]
[1745286739437,0.24156014,88399.0,88398.0,0.0080646]
[1745286741550,0.24610697,88399.0,88398.0,0.0080646]
[1745286746446,0.24610697,88399.0,88390.0,0.00013723]
[1745286746447,0.22626738,88391.0,88390.0,0.00013723]
[1745286746691,0.27446738,88391.0,88390.0,0.00013723]
[1745286746889,0.27901421,88391.0,88390.0,0.00013723]
[1745286747297,0.43797015,88391.0,88390.0,0.00013723]
[1745286747716,0.84847015,88391.0,88390.0,0.00013723]
[1745286747901,0.84847015,88391.0,88390.0,1e-08]
[1745286748146,0.84647015,88391.0,88390.0,1e-08]
[1745286748323,0.84847015,88391.0,88390.0,1e-08]
[1745286749658,0.85047015,88391.0,88390.0,1e-08]
[1745286750091,0.2263442,88361.0,88360.0,0.0008452]
[1745286750431,0.23080662,88361.0,88360.0,0.0008452]
[1745286751486,0.23080662,88361.0,88360.0,0.002303]
[1745286751905,0.34456256,88361.0,88360.0,0.002303]
[1745286752839,0.34556256,88361.0,88360.0,0.004303]
[1745286753987,0.34456256,88361.0,88360.0,0.002303]
[1745286754106,0.34456256,88361.0,88360.0,0.001303]
[1745286754309,0.34456256,88361.0,88360.0,0.002303]
[1745286754517,0.34456256,88361.0,88360.0,0.003303]
[1745286755461,0.39186256,88361.0,88360.0,0.003303]
[1745286759082,0.23080662,88361.0,88360.0,0.003303]
[1745286765914,0.39126256,88361.0,88360.0,0.003303]
[1745286766296,0.43966256,88361.0,88360.0,0.003303]
[1745286766770,0.84716256,88361.0,88360.0,1e-08]
[1745286770059,0.22641851,88332.0,88331.0,0.09016675]
[1745286770200,0.22641851,88332.0,88331.0,0.10685441]
[1745286770401,0.22641841,88333.0,88331.0,0.10685441]